fUST/lending_fUST_20240804
["ID","MTS","AMOUNT","RATE_DAILY","PERIOD"]
[334087990,1722753073819,-500.0,0.00018497,2]
[334087991,1722753073828,-582.2,0.00018497,2]
[334087992,1722753073839,-500.0,0.00018497,2]
[334087993,1722753073853,-500.0,0.00018497,2]
[334087994,1722753073863,-500.0,0.00018497,2]
[334087995,1722753073875,-500.0,0.00018497,2]
[334087996,1722753073885,-500.0,0.00018497,2]
[334087997,1722753073898,-170.01,0.00018497,2]
[334087998,1722753073910,-1672.91,0.00018497,2]
[334087999,1722753073921,-500.0,0.00018497,2]
[334088000,1722753073934,-500.0,0.00018497,2]
[334088001,1722753073946,-500.0,0.00018497,2]
[334088002,1722753073956,-669.39,0.00018497,2]
[334088003,1722753073966,-611.49,0.00018497,2]
[334088004,1722753073976,-1313.41,0.00018497,2]
[334088005,1722753073988,-516.78,0.00018497,2]
[334088006,1722753073998,-500.0,0.00018497,2]
[334088007,1722753074008,-500.0,0.00018497,2]
[334088008,1722753074018,-500.0,0.00018497,2]
[334088009,1722753074029,-601.3,0.00018497,2]
[334088010,1722753074039,-500.0,0.00018497,2]
[334088011,1722753074049,-500.0,0.00018498,2]
[334088012,1722753074058,-612.19,0.00018498,2]
[334088013,1722753074067,-3319.8,0.00018498,2]
[334088014,1722753074078,-500.0,0.00018498,2]
[334088015,1722753074088,-200.0,0.00018499,2]
[334088016,1722753074097,-500.0,0.00018499,2]
[334088017,1722753074106,-500.0,0.00018499,2]
[334088018,1722753074115,-600.79114383,0.00018499,2]
[334088019,1722753074125,-500.0,0.00018499,2]
[334088020,1722753074135,-500.0,0.00018499,2]
[334088021,1722753074144,-336.19058226,0.00018499,2]
[334088022,1722753074154,-762.82,0.00018499,2]
[334088023,1722753074164,-534.8,0.00018499,2]
[334088024,1722753074174,-500.0,0.00018499,2]
[334088025,1722753074184,-500.0,0.00018499,2]
[334088026,1722753074194,-500.0,0.00018499,2]
[334088027,1722753074203,-1021.17,0.00018499,2]
[334088028,1722753074213,-500.0,0.00018499,2]
[334088029,1722753074222,-500.0,0.00018499,2]
[334088030,1722753074233,-630.06180408,0.00018499,2]
[334088031,1722753074242,-500.0,0.00018499,2]
[334088032,1722753074252,-500.0,0.00018499,2]
[334088033,1722753074263,-500.0,0.00018499,2]
[334088034,1722753074272,-500.0,0.00018499,2]
[334088035,1722753074282,-500.0,0.00018499,2]
[334088036,1722753074291,-500.0,0.00018499,2]
[334088037,1722753074301,-1404.89,0.000185,31]
[334088038,1722753074310,-1404.89,0.000185,31]
[334088039,1722753074319,-1404.89,0.000185,31]
[334088040,1722753074328,-1404.89,0.000185,31]
[334088041,1722753074338,-1404.89,0.000185,31]
[334088042,1722753074347,-1404.89,0.000185,31]
[334088043,1722753074356,-1404.89,0.000185,31]
[334088044,1722753074366,-1404.89,0.000185,31]
[334088045,1722753074375,-1404.89,0.000185,31]
[334088046,1722753074384,-1404.89,0.000185,31]
[334088047,1722753074393,-1404.89,0.000185,31]
[334088048,1722753074402,-1404.89,0.000185,31]
[334088049,1722753074412,-1404.89,0.000185,31]
[334088050,1722753074421,-1404.89,0.000185,31]
[334088051,1722753074430,-1404.89,0.000185,31]
[334088052,1722753074440,-1404.89,0.000185,31]
[334088053,1722753074449,-1404.89,0.000185,31]
[334088054,1722753074458,-1404.89,0.000185,31]
[334088055,1722753074469,-1404.89,0.000185,31]
[334088056,1722753074481,-1000.0,0.000185,2]
[334088057,1722753074491,-555.65,0.0001851,2]
[334088058,1722753074503,-500.0,0.0001851,2]
[334088059,1722753074512,-873.5301,0.000186,2]
[334088060,1722753074524,-155.0000763,0.00018629,2]
[334088061,1722753074534,-151.0,0.0001863,2]
[334088062,1722753074544,-237.3,0.0001863,2]
[334088063,1722753074555,-417.53482764,0.00018658,2]
[334088064,1722753074566,-171.88805578,0.00018658,2]
[334088065,1722753074578,-533.92328189,0.00018667,2]
[334088066,1722753074590,-209.18351946,0.00018679,2]
[334088067,1722753074600,-154.94095582,0.00018696,2]
[334088068,1722753074610,-7319.08597546,0.00018738,2]
[334088069,1722753074620,-3987.54,0.00018751,2]
[334088070,1722753074630,-500.0,0.00018751,2]
[334088071,1722753074641,-500.0,0.00018751,2]
[334088072,1722753074651,-504.12,0.00018758,2]
[334088073,1722753074662,-2401.24,0.00018758,2]
[334088074,1722753074672,-500.0,0.00018763,2]
[334088075,1722753074681,-500.0,0.00018763,2]
[334088076,1722753074692,-547.72,0.00018763,2]
[334088077,1722753074702,-643.45,0.00018763,2]
[334088078,1722753074713,-500.0,0.00018763,2]
[334088079,1722753074724,-500.0,0.00018763,2]
[334088080,1722753074734,-1162.13,0.00018763,2]
[334088081,1722753074746,-1071.67,0.00018763,2]
[334088082,1722753074755,-5198.37,0.00018763,2]
[334088083,1722753074765,-2263.84,0.00018763,2]
[334088084,1722753074776,-1222.93,0.00018763,2]
[334088085,1722753074787,-749.33,0.00018763,2]
[334088086,1722753074797,-519.5,0.00018763,2]
[334088087,1722753074808,-402.19,0.00018763,2]
[334088088,1722753074820,-285.27352877,0.00018771,2]
[334088089,1722753074830,-500.0,0.00018771,2]
[334088090,1722753074840,-294.20658166,0.00018771,2]
[334088091,1722753075159,-475.36266586,0.00015475,2]
[334088092,1722753075794,179.42,0.00010959,2]
[334088093,1722753375507,184.14410066,9.999e-05,2]
[334088114,1722754033141,-1880.67694903,0.00010959,2]
[334088115,1722754033168,-300.0,0.0001339,2]
[334088116,1722754033194,-149.34343781,0.0001339,2]
[334088117,1722754039110,-87.65656219,0.0001339,2]
[334088118,1722754039141,-1024.80386102,0.00013391,2]
[334088119,1722754044101,-1592.07113145,0.00013391,2]
[334088121,1722754146130,-300.0,0.0001339,2]
[334088122,1722754146159,-14397.37447853,0.00013391,2]
[334088123,1722754146185,-7969.36638871,0.00013391,2]
[334088124,1722754146209,-1399.2193254,0.00013527,2]
[334088125,1722754146232,-514.78819,0.00013699,2]
[334088126,1722754146255,-32.88385291,0.00013699,2]
[334088153,1722754231947,-230.92029568,0.00013699,2]
[334088154,1722754231958,-1880.67694903,0.00013699,2]
[334088155,1722754231967,-182.742827,0.00014195,2]
[334088156,1722754231977,-712.5,0.00014247,2]
[334088157,1722754231989,-166.468145,0.00014247,2]
[334088158,1722754231998,-269.66609186,0.0001469,2]
[334088159,1722754232009,-182.742827,0.00014934,2]
[334088160,1722754232021,-459.69835721,0.00015,4]
[334088161,1722754232039,-1108.76834352,0.00015,2]
[334088162,1722754232054,-3220.72160673,0.00015363,2]
[334088163,1722754232065,-1827.62,0.00015462,2]
[334088164,1722754232077,-500.0,0.00015462,2]
[334088165,1722754232089,-500.0,0.00015462,2]
[334088166,1722754232100,-500.0,0.00015462,2]
[334088167,1722754232112,-500.0,0.00015463,2]
[334088168,1722754232122,-500.0,0.00015463,2]
[334088169,1722754232132,-500.0,0.00015463,2]
[334088170,1722754232142,-500.0,0.00015463,2]
[334088171,1722754232153,-500.0,0.00015463,2]
[334088172,1722754232165,-500.0,0.00015463,2]
[334088173,1722754232177,-500.0,0.00015463,2]
[334088174,1722754232189,-500.0,0.00015463,2]
[334088175,1722754232200,-500.0,0.00015463,2]
[334088176,1722754232213,-500.0,0.00015463,2]
[334088177,1722754232222,-601.0,0.00015463,2]
[334088178,1722754232231,-514.73510537,0.00015463,2]
[334088179,1722754232243,-235.72198429,0.00015463,2]
[334088180,1722754232255,-296.65075515,0.00015463,2]
[334088181,1722754232267,-508.74638674,0.00015463,2]
[334088182,1722754232276,-339.65240433,0.00015463,2]
[334088183,1722754232289,-500.0,0.00015463,2]
[334088184,1722754232298,-162.93194531,0.00015463,2]
[334088185,1722754232308,-448.74613483,0.00015463,2]
[334088186,1722754232318,-400.37644557,0.00015463,2]
[334088187,1722754232328,-222.73,0.00015463,2]
[334088188,1722754232337,-1100.57,0.00015463,2]
[334088189,1722754232347,-503.14079257,0.00015463,2]
[334088190,1722754232357,-500.0,0.00015463,2]
[334088191,1722754232366,-500.0,0.00015463,2]
[334088192,1722754232376,-500.0,0.00015463,2]
[334088193,1722754232386,-500.0,0.00015463,2]
[334088194,1722754232395,-1659.9,0.00015463,2]
[334088195,1722754232404,-500.0,0.00015463,2]
[334088196,1722754232414,-500.0,0.00015463,2]
[334088197,1722754232423,-500.0,0.00015463,2]
[334088198,1722754232433,-500.0,0.00015463,2]
[334088199,1722754232442,-500.0,0.00015463,2]
[334088200,1722754232452,-500.0,0.00015463,2]
[334088201,1722754232461,-500.0,0.00015463,2]
[334088202,1722754232471,-532.64,0.00015463,2]
[334088203,1722754232481,-656.71,0.00015463,2]
[334088204,1722754232490,-500.0,0.00015463,2]
[334088205,1722754232499,-500.0,0.00015463,2]
[334088206,1722754232508,-2382.58,0.00015463,2]
[334088207,1722754232518,-500.0,0.00015463,2]
[334088208,1722754232527,-500.0,0.00015463,2]
[334088209,1722754232536,-1037.59,0.00015463,2]
[334088210,1722754232546,-560.51,0.00015463,2]
[334088211,1722754232555,-500.0,0.00015463,2]
[334088212,1722754232564,-500.0,0.00015463,2]
[334088213,1722754232574,-500.0,0.00015463,2]
[334088214,1722754232583,-500.0,0.00015463,2]
[334088215,1722754232592,-500.0,0.00015463,2]
[334088216,1722754232602,-500.0,0.00015463,2]
[334088217,1722754232611,-500.0,0.00015463,2]
[334088218,1722754232620,-500.0,0.00015463,2]
[334088219,1722754232629,-500.0,0.00015463,2]
[334088220,1722754232639,-633.41421654,0.00015463,2]
[334088221,1722754232648,-500.0,0.00015463,2]
[334088222,1722754232658,-500.0,0.00015463,2]
[334088223,1722754232667,-500.0,0.00015463,2]
[334088224,1722754232676,-500.0,0.00015463,2]
[334088225,1722754232685,-500.0,0.00015463,2]
[334088226,1722754232695,-500.0,0.00015463,2]
[334088227,1722754232704,-836.45,0.00015463,2]
[334088228,1722754232714,-500.0,0.00015463,2]
[334088229,1722754232725,-500.0,0.00015464,2]
[334088230,1722754232735,-500.0,0.00015464,2]
[334088231,1722754232745,-500.0,0.00015464,2]
[334088232,1722754232755,-304.39610649,0.00015464,2]
[334088233,1722754232765,-510.59,0.00015464,2]
[334088234,1722754232775,-500.0,0.00015464,2]
[334088235,1722754232785,-1815.33,0.00015464,2]
[334088236,1722754232795,-500.0,0.00015464,2]
[334088237,1722754232805,-500.0,0.00015464,2]
[334088238,1722754232815,-500.0,0.00015464,2]
[334088239,1722754232824,-500.0,0.00015464,2]
[334088240,1722754232834,-500.0,0.00015464,2]
[334088241,1722754232843,-500.0,0.00015464,2]
[334088242,1722754232853,-500.0,0.00015464,2]
[334088243,1722754232862,-507.54635793,0.00015464,2]
[334088244,1722754232872,-511.44062734,0.00015464,2]
[334088245,1722754232882,-500.0,0.00015464,2]
[334088246,1722754232896,-500.0,0.00015464,2]
[334088247,1722754232905,-500.0,0.00015464,2]
[334088248,1722754232915,-506.64737445,0.00015464,2]
[334088249,1722754232927,-500.0,0.00015464,2]
[334088250,1722754232937,-507.37732752,0.00015464,2]
[334088251,1722754232948,-484.04148424,0.00015483,2]
[334088252,1722754232960,-423.04469386,0.00015483,2]
[334088253,1722754232970,-500.0,0.00015483,2]
[334088254,1722754232980,-500.0,0.00015493,2]
[334088255,1722754232991,-1223.53715985,0.00015607,2]
[334088256,1722754233002,-500.0,0.00015706,2]
[334088257,1722754233013,-500.0,0.00015706,2]
[334088258,1722754233024,-500.0,0.00015706,2]
[334088259,1722754233034,-500.0,0.00015706,2]
[334088260,1722754233046,-500.0,0.00015706,2]
[334088261,1722754233058,-647.51468517,0.00015706,2]
[334088262,1722754233068,-500.0,0.00015706,2]
[334088263,1722754233078,-7001.07154863,0.00015707,2]
[334088264,1722754233088,-2162.43676373,0.00015707,2]
[334088265,1722754233097,-1162.72829906,0.00015707,2]
[334088266,1722754233109,-1438.19153297,0.00015707,2]
[334088267,1722754233119,-1500.0,0.00015707,2]
[334088268,1722754233130,-1763.34953629,0.00015707,2]
[334088269,1722754233140,-2124.35920477,0.00015707,2]
[334088270,1722754233150,-1382.82376341,0.00015707,2]
[334088271,1722754233160,-14698.019168,0.00015727,2]
[334088272,1722754233171,-1827.62,0.00015736,2]
[334088273,1722754233181,-500.0,0.00015736,2]
[334088274,1722754233191,-500.0,0.00015736,2]
[334088275,1722754233203,-623.92,0.00015736,2]
[334088276,1722754233215,-500.0,0.00015737,2]
[334088277,1722754233225,-326.43341834,0.00015737,2]
[334088278,1722754233235,-500.0,0.00015737,2]
[334088279,1722754233245,-500.0,0.00015737,2]
[334088280,1722754233256,-500.0,0.00015737,2]
[334088281,1722754233266,-500.0,0.00015737,2]
[334088282,1722754233277,-500.0,0.00015737,2]
[334088283,1722754233287,-500.0,0.00015737,2]
[334088284,1722754233297,-500.0,0.00015737,2]
[334088285,1722754233306,-1100.57,0.00015737,2]
[334088286,1722754233316,-500.0,0.00015737,2]
[334088287,1722754233326,-500.0,0.00015737,2]
[334088288,1722754233335,-500.0,0.00015737,2]
[334088289,1722754233346,-500.0,0.00015737,2]
[334088290,1722754233355,-1659.9,0.00015737,2]
[334088291,1722754233365,-355.33,0.00015737,2]
[334088292,1722754233375,-500.0,0.00015737,2]
[334088293,1722754233388,-500.0,0.00015737,2]
[334088294,1722754233398,-500.0,0.00015737,2]
[334088295,1722754233409,-500.0,0.00015737,2]
[334088296,1722754233419,-500.0,0.00015737,2]
[334088297,1722754233429,-500.0,0.00015737,2]
[334088298,1722754233439,-532.64,0.00015737,2]
[334088299,1722754233448,-656.71,0.00015737,2]
[334088300,1722754233458,-500.0,0.00015737,2]
[334088301,1722754233468,-271.68,0.00015737,2]
[334088302,1722754233478,-2382.58,0.00015737,2]
[334088303,1722754233488,-500.0,0.00015737,2]
[334088304,1722754233499,-500.0,0.00015737,2]
[334088305,1722754233510,-1037.59,0.00015737,2]
[334088306,1722754233520,-560.51,0.00015737,2]
[334088307,1722754233530,-500.0,0.00015737,2]
[334088308,1722754233540,-500.0,0.00015737,2]
[334088309,1722754233550,-500.0,0.00015737,2]
[334088310,1722754233561,-500.0,0.00015737,2]
[334088311,1722754233571,-500.0,0.00015737,2]
[334088312,1722754233581,-500.0,0.00015737,2]
[334088313,1722754233591,-500.0,0.00015737,2]
[334088314,1722754233600,-500.0,0.00015737,2]
[334088315,1722754233610,-500.0,0.00015737,2]
[334088316,1722754233620,-500.0,0.00015737,2]
[334088317,1722754233630,-500.0,0.00015737,2]
[334088318,1722754233641,-500.0,0.00015737,2]
[334088319,1722754233651,-500.0,0.00015737,2]
[334088320,1722754233661,-500.0,0.00015737,2]
[334088321,1722754233671,-500.0,0.00015737,2]
[334088322,1722754233682,-836.45,0.00015737,2]
[334088323,1722754233692,-500.0,0.00015737,2]
[334088324,1722754233702,-271.72,0.00015738,2]
[334088325,1722754233712,-500.0,0.00015738,2]
[334088326,1722754233723,-510.59,0.00015738,2]
[334088327,1722754233732,-460.29813979,0.00015738,2]
[334088328,1722754233742,-1815.33,0.00015738,2]
[334088329,1722754233752,-500.0,0.00015738,2]
[334088330,1722754233763,-500.0,0.00015738,2]
[334088331,1722754233774,-500.0,0.00015738,2]
[334088332,1722754233783,-500.0,0.00015738,2]
[334088333,1722754233794,-500.0,0.00015738,2]
[334088334,1722754233804,-535.28,0.00015738,2]
[334088335,1722754233814,-500.0,0.00015738,2]
[334088336,1722754233825,-500.0,0.00015738,2]
[334088337,1722754233835,-500.0,0.00015738,2]
[334088338,1722754233844,-845.47187628,0.00015746,2]
[334088339,1722754233855,-150.112233,0.00016,2]
[334088340,1722754233866,-154.79103211,0.00016,2]
[334088341,1722754233876,-150.0,0.00016,2]
[334088342,1722754233888,-14698.019168,0.00016001,2]
[334088343,1722754233898,-1827.62,0.0001601,2]
[334088344,1722754233908,-500.0,0.0001601,2]
[334088345,1722754233918,-500.0,0.0001601,2]
[334088346,1722754233930,-500.0,0.00016011,2]
[334088347,1722754233940,-521.76,0.00016011,2]
[334088348,1722754233950,-500.0,0.00016011,2]
[334088349,1722754233959,-500.0,0.00016011,2]
[334088350,1722754233970,-500.0,0.00016011,2]
[334088351,1722754233980,-500.0,0.00016011,2]
[334088352,1722754233991,-207.75,0.00016011,2]
[334088353,1722754234001,-500.0,0.00016011,2]
[334088354,1722754234011,-1100.57,0.00016011,2]
[334088355,1722754234021,-500.0,0.00016011,2]
[334088356,1722754234032,-500.0,0.00016011,2]
[334088357,1722754234042,-500.0,0.00016011,2]
[334088358,1722754234053,-500.0,0.00016011,2]
[334088359,1722754234063,-1659.9,0.00016011,2]
[334088360,1722754234072,-500.0,0.00016011,2]
[334088361,1722754234082,-500.0,0.00016011,2]
[334088362,1722754234092,-500.0,0.00016011,2]
[334088363,1722754234103,-500.0,0.00016011,2]
[334088364,1722754234113,-500.0,0.00016011,2]
[334088365,1722754234124,-500.0,0.00016011,2]
[334088366,1722754234134,-532.64,0.00016011,2]
[334088367,1722754234145,-656.71,0.00016011,2]
[334088368,1722754234324,-500.0,0.00016011,2]
[334088369,1722754234336,-2382.58,0.00016011,2]
[334088370,1722754234347,-500.0,0.00016011,2]
[334088371,1722754234358,-1037.59,0.00016011,2]
[334088372,1722754234368,-560.51,0.00016011,2]
[334088373,1722754234385,-500.0,0.00016011,2]
[334088374,1722754234399,-500.0,0.00016011,2]
[334088375,1722754234409,-500.0,0.00016011,2]
[334088376,1722754234419,-500.0,0.00016011,2]
[334088377,1722754234428,-277.89418035,0.00016011,2]
[334088378,1722754234440,-500.0,0.00016011,2]
[334088379,1722754234450,-500.0,0.00016011,2]
[334088380,1722754234460,-500.0,0.00016011,2]
[334088381,1722754234469,-184.03447442,0.00016011,2]
[334088382,1722754234479,-500.0,0.00016011,2]
[334088383,1722754234488,-500.0,0.00016011,2]
[334088384,1722754234498,-500.0,0.00016011,2]
[334088385,1722754234508,-500.0,0.00016011,2]
[334088386,1722754234517,-500.0,0.00016011,2]
[334088387,1722754234527,-500.0,0.00016011,2]
[334088388,1722754234537,-836.45,0.00016011,2]
[334088389,1722754234546,-500.0,0.00016011,2]
[334088390,1722754234556,-500.0,0.00016012,2]
[334088391,1722754234566,-510.59,0.00016012,2]
[334088392,1722754234576,-1815.33,0.00016012,2]
[334088393,1722754234585,-500.0,0.00016012,2]
[334088394,1722754234595,-363.69,0.00016012,2]
[334088395,1722754234605,-500.0,0.00016012,2]
[334088396,1722754234615,-500.0,0.00016012,2]
[334088397,1722754234625,-239.04,0.00016012,2]
[334088398,1722754234635,-500.0,0.00016012,2]
[334088399,1722754234644,-500.0,0.00016012,2]
[334088400,1722754234654,-500.0,0.00016022,2]
[334088401,1722754234664,-500.0,0.0001605,2]
[334088402,1722754234675,-14698.019168,0.00016051,2]
[334088403,1722754234684,-162.58160657,0.0001606,2]
[334088404,1722754234694,-403.72892584,0.0001606,2]
[334088405,1722754234704,-500.0,0.0001606,2]
[334088406,1722754234714,-500.0,0.0001606,2]
[334088407,1722754234724,-500.0,0.0001606,2]
[334088408,1722754234734,-500.0,0.0001606,2]
[334088409,1722754234745,-500.0,0.0001606,2]
[334088410,1722754234755,-500.0,0.0001606,2]
[334088411,1722754234765,-500.0,0.0001606,2]
[334088412,1722754234777,-500.0,0.0001606,2]
[334088413,1722754234786,-500.0,0.0001606,2]
[334088414,1722754234796,-500.0,0.0001606,2]
[334088415,1722754234805,-500.0,0.0001606,2]
[334088416,1722754234814,-641.8527445,0.0001606,2]
[334088417,1722754234824,-30000.0,0.00016061,2]
[334088418,1722754234835,-1223.53715981,0.00016094,2]
[334088419,1722754234846,-520.808,0.00016252,2]
[334088420,1722754234859,-500.0,0.00016258,2]
[334088421,1722754234870,-4297.723,0.00016259,2]
[334088422,1722754234880,-1827.62,0.00016284,2]
[334088423,1722754234889,-500.0,0.00016284,2]
[334088424,1722754234902,-500.0,0.00016284,2]
[334088425,1722754234912,-175.35,0.00016285,2]
[334088426,1722754234923,-372.65,0.00016285,2]
[334088427,1722754234935,-500.0,0.00016285,2]
[334088428,1722754234945,-500.0,0.00016285,2]
[334088429,1722754234956,-500.0,0.00016285,2]
[334088430,1722754234967,-500.0,0.00016285,2]
[334088431,1722754234978,-1100.57,0.00016285,2]
[334088432,1722754234989,-500.0,0.00016285,2]
[334088433,1722754235001,-500.0,0.00016285,2]
[334088434,1722754235012,-500.0,0.00016285,2]
[334088435,1722754235022,-1659.9,0.00016285,2]
[334088436,1722754235035,-500.0,0.00016285,2]
[334088437,1722754235045,-235.68,0.00016285,2]
[334088438,1722754235055,-500.0,0.00016285,2]
[334088439,1722754235066,-500.0,0.00016285,2]
[334088440,1722754235075,-500.0,0.00016285,2]
[334088441,1722754235084,-532.64,0.00016285,2]
[334088442,1722754235093,-656.71,0.00016285,2]
[334088443,1722754235103,-500.0,0.00016285,2]
[334088444,1722754235112,-2382.58,0.00016285,2]
[334088445,1722754235121,-500.0,0.00016285,2]
[334088446,1722754235131,-1037.59,0.00016285,2]
[334088447,1722754235140,-560.51,0.00016285,2]
[334088448,1722754235149,-500.0,0.00016285,2]
[334088449,1722754235159,-500.0,0.00016285,2]
[334088450,1722754235168,-500.0,0.00016285,2]
[334088451,1722754235178,-500.0,0.00016285,2]
[334088452,1722754235191,-500.0,0.00016285,2]
[334088453,1722754235202,-500.0,0.00016285,2]
[334088454,1722754235216,-500.0,0.00016285,2]
[334088455,1722754235226,-500.0,0.00016285,2]
[334088456,1722754235237,-500.0,0.00016285,2]
[334088457,1722754235248,-500.0,0.00016285,2]
[334088458,1722754235259,-500.0,0.00016285,2]
[334088459,1722754235268,-500.0,0.00016285,2]
[334088460,1722754235278,-333.90960629,0.00016285,2]
[334088461,1722754235288,-836.45,0.00016285,2]
[334088462,1722754235298,-500.0,0.00016285,2]
[334088463,1722754235309,-500.0,0.00016286,2]
[334088464,1722754235319,-510.59,0.00016286,2]
[334088465,1722754235328,-1815.33,0.00016286,2]
[334088466,1722754235338,-500.0,0.00016286,2]
[334088467,1722754235349,-500.0,0.00016286,2]
[334088468,1722754235360,-500.0,0.00016286,2]
[334088469,1722754235370,-500.0,0.00016286,2]
[334088470,1722754235380,-200.0,0.00016371,2]
[334088471,1722754235391,-14698.019168,0.00016428,2]
[334088472,1722754235402,-200.0,0.00016438,2]
[334088473,1722754235413,-200.0,0.00016438,2]
[334088474,1722754235423,-200.0,0.00016438,2]
[334088475,1722754235435,-200.0,0.00016438,2]
[334088476,1722754235446,-500.0,0.00016459,2]
[334088477,1722754235457,-154.79497275,0.0001646,2]
[334088478,1722754235468,-1827.62,0.00016558,2]
[334088479,1722754235479,-500.0,0.00016558,2]
[334088480,1722754235489,-500.0,0.00016558,2]
[334088481,1722754235499,-500.0,0.00016559,2]
[334088482,1722754235512,-500.0,0.00016559,2]
[334088483,1722754235523,-500.0,0.00016559,2]
[334088484,1722754235534,-583.41,0.00016559,2]
[334088485,1722754235545,-1100.57,0.00016559,2]
[334088486,1722754235555,-500.0,0.00016559,2]
[334088487,1722754235564,-500.0,0.00016559,2]
[334088488,1722754235575,-500.0,0.00016559,2]
[334088489,1722754235586,-1659.9,0.00016559,2]
[334088490,1722754235597,-500.0,0.00016559,2]
[334088491,1722754235608,-500.0,0.00016559,2]
[334088492,1722754235619,-500.0,0.00016559,2]
[334088493,1722754235629,-500.0,0.00016559,2]
[334088494,1722754235638,-532.64,0.00016559,2]
[334088495,1722754235647,-200.0,0.00016559,2]
[334088496,1722754235656,-656.71,0.00016559,2]
[334088497,1722754235665,-500.0,0.00016559,2]
[334088498,1722754235674,-2382.58,0.00016559,2]
[334088499,1722754235684,-500.0,0.00016559,2]
[334088500,1722754235693,-1037.59,0.00016559,2]
[334088501,1722754235702,-560.51,0.00016559,2]
[334088502,1722754235711,-354.31,0.00016559,2]
[334088503,1722754235721,-500.0,0.00016559,2]
[334088504,1722754235730,-500.0,0.00016559,2]
[334088505,1722754235740,-500.0,0.00016559,2]
[334088506,1722754235749,-500.0,0.00016559,2]
[334088507,1722754235758,-492.28,0.00016559,2]
[334088508,1722754235767,-500.0,0.00016559,2]
[334088509,1722754235777,-500.0,0.00016559,2]
[334088510,1722754235786,-500.0,0.00016559,2]
[334088511,1722754235795,-246.44,0.00016559,2]
[334088512,1722754235804,-416.52,0.00016559,2]
[334088513,1722754235814,-500.0,0.00016559,2]
[334088514,1722754235823,-836.45,0.00016559,2]
[334088515,1722754235832,-500.0,0.00016559,2]
[334088516,1722754235842,-500.0,0.0001656,2]
[334088517,1722754235853,-510.59,0.0001656,2]
[334088518,1722754235863,-1815.33,0.0001656,2]
[334088519,1722754235873,-500.0,0.0001656,2]
[334088520,1722754235883,-500.0,0.0001656,2]
[334088521,1722754235892,-500.0,0.0001656,2]
[334088522,1722754235902,-288.0,0.0001656,2]
[334088523,1722754235913,-500.0,0.00016578,2]
[334088524,1722754235924,-1223.53715981,0.00016581,2]
[334088525,1722754235934,-14698.019168,0.00016823,2]
[334088526,1722754235944,-1827.62,0.00016832,2]
[334088527,1722754235956,-500.0,0.00016832,2]
[334088528,1722754235966,-500.0,0.00016832,2]
[334088529,1722754235976,-500.0,0.00016833,2]
[334088530,1722754235986,-510.59,0.00016833,2]
[334088531,1722754235996,-1815.33,0.00016833,2]
[334088532,1722754236007,-500.0,0.00016833,2]
[334088533,1722754236018,-500.0,0.00016833,2]
[334088534,1722754236028,-500.0,0.00016833,2]
[334088535,1722754236037,-500.0,0.00016833,2]
[334088536,1722754236049,-500.0,0.00016833,2]